bitfinex/quotes_ETHUSD_20250223
["timestamp","ask_amount","ask_price","bid_price","bid_amount"]
[1740330670280,11.80371,2809.5,2809.4,0.08211892]
[1740330670478,3.55973,2809.2,2809.1,0.005]
[1740330671778,3.55973,2809.2,2809.1,0.08401949]
[1740330673507,4.31883,2809.2,2809.1,0.08401949]
[1740330673712,4.31883,2809.2,2809.1,0.005]
[1740330673928,5.106674,2809.2,2809.1,0.005]
[1740330674226,0.7591,2808.9,2807.8,0.7908]
[1740330674426,3.0,2808.7,2807.9,0.7908]
[1740330674578,3.5605,2808.6,2808.2,0.7908]
[1740330675124,3.5605,2808.6,2807.9,0.7618]
[1740330675125,3.56118,2808.1,2807.9,0.7618]
[1740330675320,4.31886,2808.5,2807.9,0.7618]
[1740330675521,3.56083,2808.4,2807.8,0.264]
[1740330675726,3.56093,2808.3,2807.8,3.82549]
[1740330675908,3.56093,2808.3,2807.9,0.264]
[1740330676121,0.7582,2808.5,2807.9,0.264]
[1740330676122,4.31883,2808.5,2807.9,0.264]
[1740330676427,3.56095,2808.3,2807.9,0.264]
[1740330676581,3.0,2808.6,2808.0,0.7618]
[1740330676775,0.7582,2808.4,2807.9,3.82536]
[1740330676975,3.56087,2808.3,2807.9,0.264]
[1740330677179,4.31901,2808.4,2807.9,1.0258]
[1740330677443,3.56081,2808.4,2807.9,4.58715]
[1740330677660,3.56088,2808.3,2807.9,1.0258]
[1740330677950,3.56125,2808.0,2807.7,1.0574]
[1740330678522,3.56125,2808.0,2807.6,0.264]
[1740330678709,3.56142,2807.9,2807.6,0.264]
[1740330679505,3.56142,2807.9,2807.5,1.0574]
[1740330679706,0.792702,2807.9,2807.5,0.7934]
[1740330679906,0.792702,2807.9,2807.2,2.60162254]
[1740330679907,3.56176,2807.6,2807.3,0.264]
[1740330680251,3.5619,2807.5,2807.2,0.7934]
[1740330680452,3.56204,2807.4,2807.2,0.7934]
[1740330680825,3.56198,2807.5,2807.2,0.7934]
[1740330681024,3.56176,2807.6,2807.2,0.7934]
[1740330681557,3.56202,2807.4,2807.1,0.1522492]
[1740330681710,0.8044,2807.7,2807.1,0.1522492]
[1740330681919,3.56138,2807.9,2807.3,3.56201]
[1740330682155,3.8044,2808.0,2807.6,3.5617]
[1740330682309,3.0,2808.0,2807.7,0.7934]
[1740330682511,3.56141,2807.9,2807.7,0.7934]
[1740330682715,5.25,2808.1,2807.7,0.7934]
[1740330683065,3.56131,2808.0,2807.5,4.38058]
[1740330683362,3.56131,2808.0,2807.5,0.8187]
[1740330683570,3.56139,2807.9,2807.5,0.8187]
[1740330683718,3.56138,2807.9,2807.5,0.8187]
[1740330684442,3.56131,2808.0,2807.5,0.8187]
[1740330684620,4.878877,2808.1,2807.6,3.56173]
[1740330685562,4.878877,2808.1,2807.5,4.38058]
[1740330686060,8.440097,2808.1,2807.6,3.56175]
[1740330686244,4.11051,2808.6,2807.3,0.264]
[1740330686245,3.56043,2808.7,2808.0,3.56125]
[1740330686449,3.56043,2808.7,2808.2,3.56097]
[1740330686662,3.0,2808.6,2808.2,3.56097]
[1740330687133,3.0,2808.6,2808.3,3.56086]
[1740330687458,6.56036,2808.7,2808.2,7.12184]
[1740330687763,3.0,2808.7,2808.2,3.56092]
[1740330687965,3.56019,2808.9,2808.4,3.56073]
[1740330688116,0.436589,2808.8,2808.4,3.56073]
[1740330688557,6.996849,2808.8,2808.3,3.56079]
[1740330688757,3.996849,2808.8,2808.5,0.0742009]
[1740330689264,3.996849,2808.8,2808.6,0.0742009]
[1740330689636,3.996849,2808.8,2808.4,3.56073]
[1740330689831,0.436589,2808.8,2808.7,0.0742009]
[1740330690130,0.436589,2808.8,2808.1,1.0225]
[1740330690131,3.56043,2808.7,2808.2,7.12182]
[1740330690317,3.56043,2808.7,2808.2,3.56091]
[1740330690521,3.56043,2808.7,2808.3,0.0742009]
[1740330690719,3.56036,2808.7,2808.3,0.0742009]
[1740330690919,3.9600549,2808.7,2808.4,0.0742009]
[1740330691361,3.9600549,2808.7,2808.5,0.07358922]
[1740330691555,3.9600549,2808.7,2808.2,3.56096]
[1740330691862,3.9600549,2808.7,2808.3,0.07357996]
[1740330692068,3.9600549,2808.7,2808.2,3.56091]
[1740330692363,3.56061,2808.5,2808.4,0.07357996]
[1740330692568,3.56083,2808.4,2807.8,1.0887]
[1740330692858,3.56133,2808.0,2807.8,1.0887]
[1740330693048,3.56138,2807.9,2807.8,0.264]
[1740330693661,4.31839,2808.2,2807.8,0.264]
[1740330693863,0.7573,2808.2,2807.8,3.82543]
[1740330694033,3.56106,2808.2,2807.8,0.264]
[1740330694239,3.56119,2808.1,2807.8,0.264]
[1740330694956,0.7573,2807.8,2807.3,1.0887]
[1740330695263,3.56171,2807.7,2807.3,1.0887]
[1740330695471,4.31881,2807.8,2807.3,4.65077]
[1740330695817,3.56165,2807.7,2807.3,4.65077]
[1740330696061,3.56165,2807.7,2807.3,4.38677]
[1740330696263,3.56165,2807.7,2807.3,4.65077]
[1740330696574,4.31886,2807.8,2807.3,4.65077]
[1740330697045,0.7573,2808.1,2807.6,3.56174]
[1740330697247,0.431833,2808.0,2807.6,3.56174]
[1740330697581,0.7573,2808.1,2807.6,3.56174]
[1740330697886,3.56133,2808.0,2807.4,3.56191]
[1740330698179,3.56109,2808.2,2807.5,3.56185]
[1740330698348,3.56113,2808.1,2807.6,3.56167]
[1740330699833,3.0,2808.4,2807.5,0.7937]
[1740330700032,6.5608,2808.4,2808.0,0.7937]
[1740330700568,5.25,2808.8,2808.4,3.56067]
[1740330700869,4.39063,2808.9,2808.5,3.56059]
[1740330703886,3.56063,2808.5,2808.2,0.07071694]
[1740330704770,3.56044,2808.7,2808.2,0.07071694]
[1740330704972,4.0434403,2808.7,2808.2,0.07071694]
[1740330705409,3.56056,2808.6,2808.2,0.07071694]
[1740330706277,3.56081,2808.4,2808.2,0.07071694]
[1740330706607,0.4830003,2808.7,2808.1,3.56112]
[1740330706779,4.35419,2808.9,2808.4,7.12144]
[1740330706986,3.56031,2808.8,2808.4,3.56074]
[1740330707187,4.35419,2808.9,2808.5,0.07042997]
[1740330707374,0.794,2808.9,2808.5,0.07042997]
[1740330707574,0.794,2808.9,2808.5,3.63096997]
[1740330707883,4.35412,2808.9,2808.5,3.63096997]
[1740330708084,5.47168474,2808.9,2808.5,3.63096997]
[1740330708279,5.47168474,2808.9,2808.5,0.07042997]
[1740330709676,9.03188474,2808.9,2808.5,0.07042997]
[1740330709975,3.56025,2808.8,2808.5,0.07042997]
[1740330710610,3.56023,2808.8,2808.5,0.07042997]
[1740330710813,5.47168474,2808.9,2808.5,0.07042997]
[1740330710998,1.11756474,2808.9,2808.7,3.56031]
[1740330711202,3.0,2809.0,2808.7,3.56031]
[1740330711429,3.0,2809.0,2808.8,0.07042997]
[1740330711738,3.0,2809.0,2808.6,3.56049]
[1740330711939,3.0,2809.0,2808.9,0.07042997]
[1740330712151,0.787844,2809.2,2808.9,3.56011]
[1740330712324,0.787844,2809.2,2809.0,3.55997]
[1740330712541,5.25,2809.4,2809.0,3.55997]
[1740330712717,3.0,2809.3,2809.1,3.55974]
[1740330713034,3.0,2809.3,2809.1,3.63004964]
[1740330713239,0.75,2809.5,2809.2,3.55973]
[1740330713399,3.5592,2809.7,2809.2,3.62985454]
[1740330713600,0.75,2809.8,2809.5,3.55934]
[1740330713946,0.75,2809.8,2809.6,3.55915]
[1740330714236,3.0,2809.8,2809.7,0.06988395]
[1740330714542,0.75,2810.1,2809.7,0.06988395]
[1740330714839,3.55872,2810.0,2809.5,7.11858]
[1740330714998,3.55872,2810.0,2809.8,0.06988395]
[1740330715197,3.55872,2810.0,2809.5,3.55931]
[1740330715506,4.3086,2810.1,2809.9,0.06988395]
[1740330715706,3.55879,2810.0,2809.4,7.11879]
[1740330715934,3.55885,2809.9,2809.4,3.55938]
[1740330716537,3.55885,2809.9,2809.4,7.11879]
[1740330716736,3.55885,2809.9,2809.5,3.55934]
[1740330717139,4.3086,2810.1,2809.5,3.55934]
[1740330717443,3.55877,2810.0,2809.5,3.55934]
[1740330718644,3.55885,2809.9,2809.6,0.06988395]
[1740330719067,3.55872,2810.0,2809.6,0.06988395]
[1740330719980,4.30862,2810.1,2809.6,0.06988395]
[1740330720274,6.55843,2810.3,2809.7,3.55907]
[1740330720456,4.289433,2810.2,2809.7,0.06859795]
[1740330721093,3.55865,2810.1,2809.7,0.06859795]
[1740330721970,3.55878,2810.0,2809.7,0.06859795]
[1740330722180,3.5586,2810.1,2809.7,0.06859795]
[1740330722381,3.5586,2810.1,2809.7,0.7766]
[1740330722536,0.730843,2810.2,2809.8,3.62755795]
[1740330722735,4.289313,2810.2,2809.8,3.62755795]
[1740330723137,0.730843,2810.2,2809.8,3.62755795]
[1740330723373,7.30823,2810.4,2809.9,3.55872]
[1740330723549,10.86653,2810.4,2809.9,3.55872]
[1740330723744,3.75,2810.4,2810.0,3.6265087]
[1740330724069,3.55839,2810.3,2810.0,0.0678487]
[1740330724377,3.55839,2810.3,2809.8,3.55888]
[1740330724575,3.55839,2810.3,2810.1,0.0678487]
[1740330724758,4.870045,2810.3,2809.8,3.55888]
[1740330725081,4.870045,2810.3,2809.9,0.0678487]
[1740330725835,3.55851,2810.2,2809.9,0.0678487]
[1740330726036,3.55859,2810.1,2809.9,0.0678487]
[1740330726237,3.55846,2810.2,2809.7,4.33562]
[1740330726475,3.55846,2810.2,2810.0,0.0678487]
[1740330726675,4.870085,2810.3,2809.8,3.55891]
[1740330726875,1.311655,2810.3,2810.1,0.0678487]
[1740330727105,3.55846,2810.2,2809.8,3.55891]
[1740330727307,4.869995,2810.3,2810.2,0.0678487]
[1740330727633,3.55853,2810.2,2809.8,0.264]
[1740330728189,3.55847,2810.2,2809.8,0.264]
[1740330729223,3.55847,2810.2,2809.8,3.82291]
[1740330729383,3.55835,2810.3,2809.8,3.82291]
[1740330729583,3.55841,2810.3,2809.8,0.264]
[1740330729784,4.30828,2810.4,2809.8,0.264]
[1740330729997,3.55844,2810.3,2809.8,3.82295]
[1740330730717,3.55844,2810.3,2809.8,0.264]
[1740330731126,3.55844,2810.3,2809.8,3.82296]
[1740330731526,3.55844,2810.3,2809.8,0.264]
[1740330731729,3.55842,2810.3,2809.8,0.264]
[1740330731935,3.55842,2810.3,2809.8,3.82291]
[1740330732146,7.11684,2810.3,2809.8,3.82291]
[1740330732638,3.55842,2810.3,2809.8,0.264]
[1740330732991,3.55852,2810.2,2809.8,0.264]
[1740330733620,3.55852,2810.2,2809.9,0.06778395]
[1740330734140,3.5586,2810.1,2809.9,0.06778395]
[1740330734303,4.76522163,2810.4,2809.9,0.06778395]
[1740330734641,3.55847,2810.2,2809.9,0.06778395]
[1740330735343,3.55835,2810.3,2809.9,3.62659395]
[1740330735539,4.30828,2810.4,2809.9,0.06778395]
[1740330735839,3.55855,2810.2,2809.9,0.06778395]
[1740330736729,3.55854,2810.2,2809.9,0.06778395]
[1740330737094,3.55823,2810.4,2809.9,0.06778395]
[1740330737442,3.55806,2810.6,2810.1,4.3473]
[1740330737751,3.55806,2810.6,2810.2,3.55845]
[1740330737955,0.7569,2810.7,2810.2,0.06768223]
[1740330738113,3.55802,2810.6,2810.2,0.06768223]
[1740330738514,7.1161,2810.6,2810.2,0.06768223]
[1740330738744,3.55802,2810.6,2810.2,0.06768223]
[1740330739126,3.55763,2810.9,2810.4,3.55815]
[1740330739364,5.25,2811.0,2810.6,3.55794]
[1740330739535,0.7569,2811.1,2810.6,0.263]
[1740330739859,3.55746,2811.0,2810.7,0.06749731]
[1740330740563,3.55741,2811.1,2810.7,0.06749731]
[1740330740863,3.55741,2811.1,2810.7,0.53522104]
[1740330741163,3.55752,2811.0,2810.7,0.53522104]
[1740330741359,3.55752,2811.0,2810.7,0.06749731]
[1740330743243,3.55719,2811.2,2810.7,0.06749731]
[1740330743421,3.55738,2811.1,2810.7,0.06749731]
[1740330743748,3.55726,2811.2,2810.8,0.8194]
[1740330743958,3.55741,2811.1,2810.8,0.8194]
[1740330744250,3.55741,2811.1,2810.9,0.06281173]
[1740330745020,7.11484,2811.1,2810.9,0.06281173]
[1740330745241,3.55745,2811.0,2810.9,0.06281173]
[1740330748285,3.55739,2811.1,2810.9,0.06281173]
[1740330748775,7.11481,2811.1,2810.9,0.06281173]
[1740330749373,3.55745,2811.0,2810.9,0.06281173]
[1740330749580,7.1148,2811.1,2810.9,0.06281173]
[1740330749778,3.55739,2811.1,2810.9,0.06281173]
[1740330750078,7.11481,2811.1,2810.9,0.06281173]
[1740330750380,3.55739,2811.1,2810.9,0.06281173]
[1740330750678,3.55745,2811.0,2810.9,0.06281173]
[1740330751262,3.55707,2811.3,2810.9,0.06281173]
[1740330751466,5.25,2811.4,2810.9,0.8625849]
[1740330751766,3.5572,2811.2,2810.9,0.8625849]
[1740330754968,3.55705,2811.4,2810.9,0.8625849]
[1740330755199,3.55704,2811.4,2810.9,4.4201549]
[1740330755503,3.55704,2811.4,2811.0,0.0624698]
[1740330755710,3.55711,2811.3,2811.0,0.9421601]
[1740330757397,3.5572,2811.2,2811.0,0.9421601]
[1740330759514,3.55708,2811.3,2811.0,0.9421601]
[1740330762231,4.37402,2811.1,2811.0,0.0624698]
[1740330762435,4.92402,2811.1,2811.0,0.0624698]
[1740330762635,0.8167,2810.9,2810.1,5.39]
[1740330762803,3.55846,2810.2,2810.1,0.263]
[1740330763945,3.55846,2810.2,2810.1,0.05790436]
[1740330764144,4.37529,2810.1,2809.3,0.8016]
[1740330764291,3.5596,2809.3,2809.2,0.263]
[1740330764645,3.55944,2809.5,2809.2,0.263]
[1740330765712,6.55872,2810.0,2809.5,3.55927]
[1740330765924,6.55872,2810.0,2809.2,0.263]
[1740330766227,0.8167,2810.1,2809.6,0.7556]
[1740330766393,3.55849,2810.2,2809.6,4.31481]
[1740330766594,3.55859,2810.1,2809.6,4.31481]
[1740330766912,0.8175,2810.3,2809.7,3.55909]
[1740330767227,3.55836,2810.3,2809.8,3.55889]
[1740330767728,11.80828,2810.4,2809.8,3.55892]
[1740330767934,8.25,2810.4,2810.0,3.55862]
[1740330768338,5.25,2810.4,2810.0,3.82162]
[1740330768638,5.25,2810.4,2810.0,0.263]
[1740330769313,5.25,2810.4,2810.0,3.8216]
[1740330769510,5.25,2810.4,2810.0,7.38022]
[1740330769834,5.25,2810.4,2810.1,3.55856]
[1740330770136,9.62519,2810.9,2810.4,3.55816]
[1740330770351,5.25,2810.9,2810.5,3.558]
[1740330770512,5.25,2810.9,2810.7,3.55775]
[1740330770844,8.80697,2811.4,2810.8,3.55759]
[1740330771013,3.5576,2810.9,2810.4,3.55821]
[1740330771212,3.5576,2810.9,2810.4,4.60559925]
[1740330771627,3.55792,2810.7,2810.3,0.7556]
[1740330771942,3.5576,2810.9,2810.4,3.82114]
[1740330772243,3.55758,2810.9,2810.4,3.82114]
[1740330772548,3.55737,2811.1,2810.4,3.82114]
[1740330772750,6.55715,2811.3,2810.7,3.55774]
[1740330773039,3.55735,2811.1,2810.4,3.82114]
[1740330773245,3.55748,2811.0,2810.5,3.55801]
[1740330774005,3.55748,2811.0,2810.6,3.55794]
[1740330774204,3.55734,2811.1,2810.6,3.55787]
[1740330774440,3.55734,2811.1,2810.7,3.55781]
[1740330774746,4.46392462,2811.2,2810.7,3.55781]
[1740330775314,0.90671462,2811.2,2810.6,3.55787]
[1740330775520,3.55733,2811.1,2810.6,3.55787]
[1740330775949,6.55716,2811.3,2810.6,0.737901]
[1740330776111,3.55708,2811.3,2810.8,3.55762]
[1740330776848,4.3456,2811.5,2810.8,3.55762]
[1740330777055,3.55701,2811.4,2810.9,3.55749]
[1740330778247,3.55682,2811.5,2811.1,3.55731]
[1740330778449,3.55682,2811.5,2811.1,0.355731]
[1740330778649,3.55682,2811.5,2811.0,3.55745]
[1740330778851,7.11374,2811.5,2811.2,0.05371237]
[1740330779152,3.55696,2811.4,2811.3,0.05371237]
[1740330779323,3.55696,2811.4,2810.9,3.55753]
[1740330779659,3.55696,2811.4,2811.3,0.05371237]
[1740330779822,3.55696,2811.4,2810.9,7.11498]
[1740330780151,3.55696,2811.4,2810.9,4.268988]
[1740330780322,3.55696,2811.4,2811.0,0.05371237]
[1740330780667,3.55696,2811.4,2811.0,3.61115237]
[1740330781159,3.55696,2811.4,2811.0,0.05371237]
[1740330781509,3.55696,2811.4,2811.0,3.61113237]
[1740330781709,3.55696,2811.4,2811.0,4.39914241]
[1740330781924,3.55696,2811.4,2811.0,0.84172241]
[1740330782203,3.55696,2811.4,2811.0,0.05371237]
[1740330782609,4.31435,2811.8,2811.0,0.05371237]
[1740330782807,3.55732,2811.1,2811.0,0.05371237]
[1740330783121,0.7806,2811.5,2810.8,3.55759]
[1740330783314,3.55706,2811.4,2811.0,0.05358301]
[1740330783509,4.33742,2811.5,2811.0,3.55735]
[1740330783755,4.33742,2811.5,2811.1,0.05358301]
[1740330784059,3.55695,2811.4,2811.1,0.05358301]
[1740330784455,3.55695,2811.4,2810.9,3.55757]
[1740330784616,3.55695,2811.4,2811.2,0.05358301]
[1740330784951,3.55695,2811.4,2811.3,0.05358301]
[1740330785158,3.55695,2811.4,2810.9,4.269088]
[1740330785329,3.55695,2811.4,2811.3,0.05358301]
[1740330785510,3.55695,2811.4,2810.9,4.269088]
[1740330785711,3.55695,2811.4,2811.3,0.05358301]
[1740330785970,3.5574,2811.1,2810.6,3.55788]
[1740330786124,3.5574,2811.1,2810.7,3.55781]
[1740330786757,3.55752,2811.0,2810.5,4.64755]
[1740330787214,3.55752,2811.0,2810.5,8.20556]
[1740330787417,3.55752,2811.0,2810.6,4.378506]
[1740330787761,3.55746,2811.0,2810.6,4.378486]
[1740330788561,3.55734,2811.1,2810.6,4.378486]
[1740330789242,3.55725,2811.2,2810.7,3.55777]
[1740330789428,3.55739,2811.1,2810.6,4.378496]
[1740330789629,3.55739,2811.1,2810.7,0.9025986]
[1740330790862,3.55738,2811.1,2810.7,0.9025986]
[1740330791575,3.55738,2811.1,2810.7,4.4603886]
[1740330793666,3.55738,2811.1,2810.8,0.05348136]
[1740330794000,3.55738,2811.1,2810.7,4.4603886]
[1740330794204,3.55738,2811.1,2810.9,0.05348136]
[1740330794389,3.55738,2811.1,2810.7,4.4603886]
[1740330794588,3.55738,2811.1,2811.0,0.05348136]
[1740330794776,3.55738,2811.1,2810.7,4.4603886]
[1740330795268,3.55738,2811.1,2810.8,0.05348136]
[1740330795601,3.55738,2811.1,2810.7,4.4603886]
[1740330795804,3.55738,2811.1,2810.9,0.05348136]
[1740330795967,3.55738,2811.1,2810.7,4.4603886]
[1740330796167,3.55738,2811.1,2811.0,0.05348136]
[1740330796366,3.55738,2811.1,2810.7,4.4603886]
[1740330796611,3.55738,2811.1,2811.0,0.05348136]
[1740330796816,3.55725,2811.2,2810.7,3.55779]
[1740330796979,3.55725,2811.2,2811.0,0.05348136]
[1740330797179,3.55725,2811.2,2810.7,3.55779]
[1740330797382,3.55725,2811.2,2811.1,0.05348136]
[1740330797595,3.55725,2811.2,2810.7,3.55779]
[1740330797797,3.55725,2811.2,2811.1,0.05348136]
[1740330797966,3.55725,2811.2,2810.7,3.55779]
[1740330798169,3.55725,2811.2,2811.1,0.05348136]
[1740330798400,3.55725,2811.2,2810.7,3.55779]
[1740330798668,3.55725,2811.2,2810.7,3.55775]
[1740330798884,3.55725,2811.2,2810.8,0.05348136]
[1740330799101,3.55725,2811.2,2810.7,3.55775]
[1740330799323,3.55725,2811.2,2810.9,0.05348136]
[1740330799465,3.55725,2811.2,2810.7,3.55775]
[1740330799670,3.55725,2811.2,2810.8,0.05348136]
[1740330799909,3.55725,2811.2,2810.7,3.55775]
[1740330800115,3.55725,2811.2,2810.9,0.05348136]
[1740330800270,3.55725,2811.2,2810.7,3.55775]
[1740330800471,3.55725,2811.2,2810.8,0.05348136]
[1740330800672,3.55725,2811.2,2810.7,3.55775]
[1740330800902,3.55725,2811.2,2810.8,0.05348136]
[1740330801087,3.55725,2811.2,2810.7,3.55775]
[1740330801428,3.55725,2811.2,2810.9,0.05348136]
[1740330801571,3.55725,2811.2,2810.7,7.11551]
[1740330801772,3.55725,2811.2,2811.0,0.05348136]
[1740330802017,3.55725,2811.2,2810.8,3.5577]
[1740330802213,4.31515,2812.0,2811.4,3.55683]
[1740330802389,3.55633,2811.9,2811.4,4.33454]
[1740330802592,3.55633,2811.9,2811.5,0.05345363]
[1740330803210,0.7589,2812.0,2811.6,3.55657]
[1740330803602,0.7589,2812.0,2811.7,0.05307485]
[1740330804089,3.55644,2811.8,2811.7,0.05307485]
[1740330804294,3.55644,2811.8,2811.4,0.7776]
[1740330804518,3.55657,2811.7,2811.5,0.263]
[1740330804811,3.55685,2811.5,2811.4,0.263]
[1740330805407,3.55685,2811.5,2811.3,0.263]
[1740330806318,3.55715,2811.3,2811.1,0.7776]
[1740330806491,0.7854,2811.9,2810.6,11.94788]
[1740330806492,3.55743,2811.1,2810.7,0.263]
[1740330806921,3.5574,2811.1,2810.7,0.263]
[1740330807308,3.5574,2811.1,2810.7,3.82082]
[1740330807508,3.5574,2811.1,2810.7,0.263]
[1740330808013,7.11483,2811.1,2810.7,0.263]
[1740330808206,3.5574,2811.1,2810.7,0.263]
[1740330808411,3.55751,2811.0,2810.7,0.263]
[1740330808818,3.55751,2811.0,2810.9,0.71066568]
[1740330809424,3.55751,2811.0,2810.9,0.76381443]
[1740330809586,4.41721145,2811.0,2810.9,0.05314875]
[1740330810019,3.55788,2810.7,2810.3,1.0864]
[1740330810226,3.55803,2810.6,2810.3,1.0864]
[1740330810427,3.55788,2810.7,2810.4,0.05329656]
[1740330810428,3.5582,2810.5,2810.4,0.05329656]
[1740330810940,3.55761,2810.9,2810.4,0.05348135]
[1740330810941,4.31614,2810.9,2810.4,0.05348135]
[1740330811220,4.31614,2810.9,2810.3,3.55824]
[1740330811433,4.31608,2810.9,2810.5,0.05372161]
[1740330811599,3.5578,2810.8,2810.3,3.55832]
[1740330811801,3.5578,2810.8,2810.6,0.05372161]
[1740330812001,3.5578,2810.8,2810.3,3.55832]
[1740330812203,3.5578,2810.8,2810.7,0.05372161]
[1740330812414,3.55802,2810.6,2810.1,3.55852]
[1740330812586,3.55813,2810.5,2810.2,0.263]
[1740330812788,3.55802,2810.6,2810.2,0.263]
[1740330813352,3.55844,2810.3,2809.8,4.780822]
[1740330813635,3.55844,2810.3,2809.9,3.82182]
[1740330813798,3.55844,2810.3,2809.9,4.6820822]
[1740330814235,3.55844,2810.3,2809.9,1.1232622]
[1740330814398,0.7585,2810.4,2809.8,0.7905]
[1740330814599,0.7585,2810.4,2809.6,7.992]
[1740330814895,3.55886,2809.9,2809.6,8.255]
[1740330815511,3.55872,2810.0,2809.6,8.255]
[1740330815745,3.55864,2810.1,2809.1,2.60162254]
[1740330815746,3.55932,2809.6,2809.2,0.7905]
[1740330815914,0.7585,2809.7,2809.2,0.7905]
[1740330816241,4.31771,2809.7,2809.2,0.7905]
[1740330816447,3.55926,2809.6,2809.2,0.7905]
[1740330816603,0.7585,2809.7,2809.1,0.263]
[1740330816797,3.56014,2808.9,2808.4,4.35116]
[1740330817043,3.55968,2809.3,2808.4,1.0535]
[1740330817338,3.55949,2809.4,2808.9,0.7905]
[1740330817522,3.55993,2809.1,2808.7,0.7905]
[1740330817722,4.3183,2809.2,2808.7,4.35085]
[1740330818032,0.7585,2809.2,2808.7,4.35085]
[1740330818203,3.55947,2809.4,2808.7,1.84179725]
[1740330818403,0.7585,2809.5,2809.1,3.55973]
[1740330818605,3.55949,2809.4,2808.9,3.56003]
[1740330819107,3.55987,2809.1,2808.7,0.7905]
[1740330819307,3.55987,2809.1,2809.0,0.05140037]
[1740330819507,3.55987,2809.1,2808.5,4.35103]
[1740330819702,3.55987,2809.1,2809.0,0.05140037]
[1740330819939,3.55975,2809.2,2808.7,3.56035]
[1740330820247,3.55965,2809.3,2809.0,0.05140037]
[1740330820402,3.55985,2809.2,2808.6,3.82344]
[1740330820607,3.55985,2809.2,2809.1,0.05140037]
[1740330820808,4.31792,2809.5,2808.6,0.263]
[1740330821147,8.80918,2809.7,2809.2,3.55971]
[1740330821744,8.80918,2809.7,2809.3,0.05142812]
[1740330821913,1.319447,2809.7,2809.1,0.7676]
[1740330822121,3.55943,2809.5,2809.4,0.05141887]
[1740330822322,3.55935,2809.5,2809.1,0.7676]
[1740330822644,3.55935,2809.5,2809.4,0.05141887]
[1740330822828,3.55946,2809.5,2808.9,6.92930254]
[1740330823346,3.55946,2809.5,2809.0,0.05141887]
[1740330823698,3.55954,2809.4,2809.0,0.05141887]
[1740330823968,3.55922,2809.6,2809.0,0.05141887]
[1740330824120,3.5598,2809.2,2808.6,7.19261254]
[1740330824318,3.5598,2809.2,2809.1,0.05262087]
[1740330824526,3.5598,2809.2,2808.6,7.19261254]
[1740330824845,3.5598,2809.2,2809.1,0.05262087]
[1740330825000,3.5598,2809.2,2808.6,7.19261254]
[1740330825203,3.5598,2809.2,2809.1,0.05262087]
[1740330825706,3.5598,2809.2,2808.8,0.263]
[1740330825924,3.5598,2809.2,2809.1,0.05262087]
[1740330826101,3.5598,2809.2,2808.8,0.263]
[1740330826302,0.8264,2809.5,2809.1,0.05262087]
[1740330826517,0.8264,2809.5,2809.0,3.55998]
[1740330826736,0.8264,2809.5,2809.2,0.05262087]
[1740330827047,4.38582,2809.5,2809.1,0.8238]
[1740330827208,0.55,2809.4,2809.3,0.05260237]
[1740330827408,0.438582,2809.4,2808.9,3.82302]
[1740330827643,0.8264,2809.5,2809.3,3.61204686]
[1740330827971,0.7863,2809.8,2809.4,3.61194686]
[1740330828325,0.7863,2809.8,2809.4,0.05254686]
[1740330828518,9.35871,2810.0,2809.4,0.05254686]
[1740330828519,5.8,2810.0,2809.5,3.55927]
[1740330828725,8.80878,2810.0,2809.5,3.61180761]
[1740330828921,3.55885,2809.9,2809.5,0.05253761]
[1740330829121,3.55885,2809.9,2809.3,7.11907]
[1740330829325,3.55885,2809.9,2809.6,0.05253761]
[1740330829521,3.55885,2809.9,2809.3,3.5595]
[1740330829722,3.55885,2809.9,2809.7,0.05253761]
[1740330830043,3.55885,2809.9,2809.4,3.55947]
[1740330830217,5.25,2810.0,2809.8,0.05253761]
[1740330830420,3.55886,2809.9,2809.5,3.55925]
[1740330830725,3.55873,2810.0,2809.5,3.55934]
[1740330830926,3.55873,2810.0,2809.5,7.11863]
[1740330831148,3.55895,2809.9,2809.3,3.55951]
[1740330831327,3.55895,2809.9,2809.4,3.55946]
[1740330831704,3.55872,2810.0,2809.5,3.55927]
[1740330831835,3.55885,2809.9,2809.5,3.55927]
[1740330832848,3.55874,2810.0,2809.5,3.55927]
[1740330833869,3.55884,2809.9,2809.5,3.55927]
[1740330834230,3.559,2809.8,2809.5,0.263]
[1740330834426,4.34498,2810.1,2809.5,0.263]
[1740330834631,3.55885,2809.9,2809.5,0.263]
[1740330836181,3.55899,2809.8,2809.5,0.263]
[1740330836541,0.7863,2810.1,2809.3,0.263]
[1740330836542,3.55947,2809.5,2809.3,0.263]
[1740330836740,3.55917,2809.7,2809.3,0.263]
[1740330836943,3.55922,2809.6,2809.3,0.263]
[1740330837566,3.55893,2809.9,2809.3,0.263]
[1740330837751,3.55893,2809.9,2809.4,3.55937]
[1740330838079,3.55893,2809.9,2809.3,3.82249]
[1740330838290,3.55904,2809.8,2809.3,3.82249]
[1740330838878,3.55904,2809.8,2809.4,0.05211211]
[1740330839221,3.55905,2809.8,2809.4,0.05211211]
[1740330839385,3.55935,2809.5,2809.4,0.05211211]
[1740330839540,3.55935,2809.5,2809.3,0.263]
[1740330839742,3.55935,2809.5,2809.4,0.05213986]
[1740330840558,0.8281,2809.6,2809.4,0.05213986]
[1740330840772,4.38737,2809.6,2809.4,0.05213986]
[1740330842502,3.55927,2809.6,2809.4,0.05213986]
[1740330842705,3.55897,2809.9,2809.5,0.7832]
[1740330842907,0.355897,2809.9,2809.4,0.05213986]
[1740330843076,3.55918,2809.7,2809.5,0.05213061]
[1740330843607,7.11837,2809.7,2809.3,1.0462]
[1740330843809,3.55918,2809.7,2809.6,0.05213061]